bitfinex-derivatives/quotes_ETHF0:USTF0_20251117
["timestamp","ask_amount","ask_price","bid_price","bid_amount"]
[1763395348099,6.4453412,3101.2,3096.3,0.00363123]
[1763395348100,3.2078,3098.2,3097.2,0.5217]
[1763395348286,3.2078,3098.6,3097.9,3.73119]
[1763395348490,3.2078,3098.6,3097.9,3.2078]
[1763395348894,0.00767092,3098.6,3098.4,1.04501]
[1763395349090,3.2078,3098.7,3097.9,0.00484371]
[1763395349296,3.2078,3098.3,3096.2,3.2078]
[1763395349496,3.2078,3096.5,3094.1,3.2078]
[1763395349694,3.2078,3094.9,3093.7,3.24012428]
[1763395349894,1.523,3096.5,3093.7,0.55642428]
[1763395349895,3.2078,3094.5,3093.7,0.55642428]
[1763395350094,3.2078,3094.5,3093.9,0.52407]
[1763395350293,3.2078,3094.5,3092.8,40.8]
[1763395350294,3.2078,3094.0,3092.1,3.2078]
[1763395350597,3.2078,3092.2,3091.2,0.52563622]
[1763395350797,0.00346499,3092.2,3091.2,0.52563622]
[1763395351000,3.2078,3091.8,3091.2,0.52563622]
[1763395351187,3.2078,3091.4,3091.2,0.52563622]
[1763395351389,0.00485169,3091.6,3091.2,0.52563622]
[1763395351691,3.2078,3091.4,3091.2,0.52563622]
[1763395351994,0.00346499,3092.2,3091.8,0.52442]
[1763395352190,3.2078,3093.5,3092.7,0.5217]
[1763395352493,3.2078,3093.2,3092.7,0.5217]
[1763395352894,3.2078,3093.2,3092.8,0.52426]
[1763395353099,3.2078,3093.2,3092.8,9.2078]
[1763395353100,0.00284194,3093.2,3092.8,9.2078]
[1763395353301,0.00284194,3093.2,3092.7,0.5217]
[1763395353498,3.2078,3094.2,3094.0,0.5217]
[1763395354396,3.2078,3094.2,3093.4,3.2078]
[1763395354712,3.2078,3093.5,3092.7,0.5217]
[1763395354997,3.21265169,3094.1,3094.0,0.5217]
[1763395355392,3.21265169,3094.1,3092.8,3.2078]
[1763395355597,3.2078,3093.7,3093.1,0.00485169]
[1763395355998,3.2078,3093.7,3093.3,0.52416]
[1763395356201,3.2078,3093.7,3093.1,0.00485169]
[1763395356595,3.2078,3093.7,3093.2,0.52418]
[1763395356790,3.2078,3093.7,3093.1,0.00485169]
[1763395357196,3.21265169,3094.1,3094.0,0.5217]
[1763395358003,3.2078,3095.0,3094.8,0.5217]
[1763395358296,3.2078,3095.5,3094.8,0.5217]
[1763395358488,3.2078,3095.1,3094.8,0.5217]
[1763395358695,3.2078,3095.9,3094.8,0.5217]
[1763395358894,3.21103206,3095.9,3095.7,0.52376]
[1763395359100,3.21103206,3095.9,3095.7,0.00236883]
[1763395359493,3.2078,3097.4,3096.0,0.5217]
[1763395359698,0.70516824,3097.3,3097.2,0.5217]
[1763395359900,0.70516824,3097.3,3097.0,3.2078]
[1763395359901,3.2078,3097.3,3096.5,3.2078]
[1763395360096,3.2078,3096.9,3096.5,3.2078]
[1763395360296,3.2078,3096.9,3096.0,0.5217]
[1763395360604,0.00484371,3096.8,3096.2,3.2078]
[1763395360810,0.00484371,3096.8,3096.2,3.73148]
[1763395361101,0.00484371,3096.8,3096.1,0.00484371]
[1763395361102,3.2078,3096.5,3096.1,0.00484371]
[1763395361696,3.2078,3096.5,3095.4,3.2078]
[1763395361907,3.2078,3095.8,3095.0,3.2078]
[1763395362101,3.2078,3096.2,3095.4,3.73161]
[1763395362307,3.2078,3096.2,3095.4,3.2078]
[1763395362707,3.2078,3096.1,3095.5,0.00484371]
[1763395363704,3.2078,3095.7,3092.0,1.7248467]
[1763395363900,3.2078,3095.7,3091.4,0.5217]
[1763395363901,3.2078,3094.7,3091.9,4.9326467]
[1763395364104,1.70348513,3096.0,3091.4,0.5217]
[1763395364304,20.95389381,3095.9,3092.6,0.52429]
[1763395364603,0.322,3093.6,3093.1,3.2078]
[1763395364798,3.2078,3094.9,3093.5,3.2078]
[1763395365003,3.2078,3095.3,3094.3,3.2078]
[1763395365302,0.4739,3096.6,3094.8,3.2078]
[1763395365303,3.2078,3095.7,3094.8,3.2078]
[1763395365700,0.00484371,3095.6,3094.9,0.00484371]
[1763395365901,0.00484371,3095.6,3095.4,0.52381]
[1763395366211,0.00484371,3095.6,3095.4,0.5264364]
[1763395367201,3.2078,3096.4,3095.4,0.0026264]
[1763395367798,3.2078,3096.4,3095.4,3.2104264]
[1763395368000,0.00484371,3096.2,3095.4,3.7342364]
[1763395368207,3.2078,3097.5,3097.0,0.52355]
[1763395368400,3.2078,3097.5,3096.4,3.2078]
[1763395368900,3.2078,3097.5,3096.8,3.2078]
[1763395369198,3.2078,3097.5,3095.4,0.0026264]
[1763395369199,3.2078,3096.9,3095.4,0.0026264]
[1763395369404,5.00564763,3097.4,3095.4,0.0026264]
[1763395369405,3.2078,3095.5,3095.4,0.0026264]
[1763395369606,0.70664763,3096.8,3095.4,0.0026264]
[1763395369607,3.2078,3095.8,3095.4,0.0026264]
[1763395370106,3.2078,3096.2,3095.4,6.0026264]
[1763395370299,3.2078,3097.2,3096.4,0.52364]
[1763395370500,3.2078,3097.2,3096.6,0.52654371]
[1763395370700,0.00484371,3097.3,3096.6,0.52654371]
[1763395370902,3.2078,3097.2,3096.6,1.05015371]
[1763395371111,0.00484371,3097.3,3096.8,0.52358]
[1763395371508,3.21264371,3097.3,3096.6,0.52654371]
[1763395371701,3.2078,3096.8,3096.6,0.00484371]
[1763395371903,3.2078,3096.8,3095.9,0.52373]
[1763395372105,3.2078,3096.8,3095.7,3.2078]
[1763395372106,3.2078,3096.8,3095.8,0.52374]
[1763395372313,3.2078,3096.8,3096.1,3.2078]
[1763395373005,3.2078,3097.2,3097.0,0.52354]
[1763395373506,3.2078,3097.2,3096.0,0.9246]
[1763395373709,3.2078,3097.2,3096.5,0.52363]
[1763395373907,3.2078,3096.7,3096.3,0.52366]
[1763395374307,3.2078,3096.7,3096.2,3.2078]
[1763395374504,3.2078,3096.7,3096.3,0.52366]
[1763395374809,3.2078,3096.7,3096.2,3.73148]
[1763395375005,3.2078,3096.7,3096.2,3.2078]
[1763395375206,3.2078,3096.7,3096.0,0.9246]
[1763395375411,3.2078,3096.7,3095.9,3.2078]
[1763395375901,3.2078,3096.7,3095.8,0.00484371]
[1763395376109,3.2078,3096.0,3094.6,0.52396]
[1763395376314,3.2078,3095.2,3094.5,3.2078]
[1763395376811,3.2078,3095.2,3095.0,0.52389]
[1763395377013,3.2078,3095.2,3094.5,3.2078]
[1763395377213,3.2078,3095.2,3094.8,0.52392]
[1763395377410,3.2078,3095.2,3094.9,0.5239]
[1763395377709,3.2078,3095.2,3093.6,3.2078]
[1763395377902,3.2078,3093.7,3093.0,3.2078]
[1763395378810,3.2078,3094.1,3093.9,0.52407]
[1763395379007,3.2078,3095.1,3093.8,3.2078]
[1763395379204,3.2078,3094.1,3093.2,3.2078]
[1763395379403,3.2078,3094.1,3093.0,0.00269007]
[1763395379605,3.2078,3094.1,3093.4,0.52415]
[1763395379801,3.21264371,3094.1,3093.4,0.00484371]
[1763395380208,0.00380277,3095.1,3093.4,0.00484371]
[1763395380209,3.2078,3094.9,3093.8,3.2078]
[1763395380408,0.00380277,3095.1,3095.0,0.52389]
[1763395380604,0.00380277,3095.1,3094.2,3.2078]
[1763395380808,0.00380277,3095.1,3093.6,0.9246]
[1763395380809,3.2078,3094.3,3093.6,0.9246]
[1763395381309,0.00484371,3094.3,3094.1,0.52404]
[1763395381611,4.371e-05,3094.3,3094.1,0.52404]
[1763395381816,0.00380277,3095.1,3094.9,0.5239]
[1763395382314,0.00380277,3095.1,3094.3,0.9246]
[1763395382502,0.00380277,3095.1,3093.7,0.5241]
[1763395382503,3.2078,3094.7,3093.7,0.5241]
[1763395382707,3.2078,3094.2,3094.0,0.52406]
[1763395382906,0.00484371,3094.5,3094.4,0.52399]
[1763395383109,3.2078,3095.0,3094.8,0.52391]
[1763395383306,3.2078,3095.0,3094.6,0.52395]
[1763395383507,3.2078,3095.0,3093.6,0.9246]
[1763395383702,3.2078,3095.0,3093.0,1.14350457]
[1763395383703,3.2078,3093.7,3093.0,3.21049007]
[1763395384309,0.00308885,3093.9,3093.8,0.52409]
[1763395384614,3.2078,3094.9,3094.7,0.52394]
[1763395385208,0.00380277,3095.1,3095.0,0.52389]
[1763395385414,3.2078,3095.5,3095.4,0.52382]
[1763395385607,3.2078,3095.5,3095.3,0.52384]
[1763395386112,3.2078,3095.5,3095.4,0.9246]
[1763395386416,3.21007566,3095.5,3095.4,0.92783979]
[1763395387117,3.2078,3096.4,3096.3,0.52367]
[1763395387409,3.2078,3097.0,3096.9,0.52357]
[1763395388020,3.21170762,3097.0,3096.0,44.01264371]
[1763395388210,3.21170762,3097.0,3096.8,0.52358]
[1763395389312,3.21170762,3097.0,3096.5,0.9246]
[1763395389610,3.2078,3096.6,3096.0,0.00484371]
[1763395389808,3.2078,3096.2,3096.1,0.5237]
[1763395390122,3.2078,3096.2,3096.0,0.00484371]
[1763395390409,9.2078,3096.2,3095.4,0.00323979]
[1763395390614,3.2078,3095.6,3095.4,0.00323979]
[1763395391209,3.2078,3095.6,3095.4,1.45165979]
[1763395391409,3.2078,3095.6,3095.4,0.00323979]
[1763395391614,1.89286294,3095.6,3095.4,4.68205979]
[1763395391814,3.2078,3096.6,3096.3,0.52367]
[1763395392115,3.2078,3096.6,3095.5,3.2078]
[1763395392414,0.00390762,3097.0,3095.4,0.92783979]
[1763395392415,3.2078,3096.2,3095.4,0.00323979]
[1763395392622,0.9253,3096.5,3095.4,0.00323979]
[1763395392623,3.2078,3095.8,3095.4,0.00323979]
[1763395392910,3.2078,3095.8,3095.2,0.00484371]
[1763395393116,3.2078,3095.3,3095.2,0.00484371]
[1763395394017,3.2078,3095.3,3095.2,0.00873757]
[1763395394319,3.2078,3095.3,3094.2,3.2078]
[1763395394320,9.2078,3095.3,3094.2,3.2078]
[1763395394613,3.2078,3094.3,3092.8,3.2078]
[1763395394915,3.2078,3094.3,3094.1,0.52403]
[1763395395113,3.2078,3094.3,3093.6,3.2078]
[1763395395114,3.2078,3094.7,3094.0,0.52406]
[1763395395417,3.2078,3094.2,3092.6,3.2078]
[1763395395610,0.00862875,3094.7,3092.7,0.52427]
[1763395395611,3.2078,3093.2,3092.7,0.52427]
[1763395395811,3.2078,3093.7,3093.0,3.2078]
[1763395396016,3.2078,3094.2,3093.6,0.52413]
[1763395396219,3.2078,3094.2,3093.4,3.2078]
[1763395396416,3.21158504,3094.7,3094.5,0.52397]
[1763395396621,0.00378504,3094.7,3094.5,0.52397]
[1763395397312,3.21158504,3094.7,3093.9,3.2078]
[1763395397921,3.21158504,3094.7,3094.1,0.52403]
[1763395398112,3.21158504,3094.7,3093.9,3.2078]
[1763395398312,3.21158504,3094.7,3094.1,0.52403]
[1763395398615,3.21158504,3094.7,3094.5,0.52397]
[1763395398817,3.21158504,3094.7,3094.0,0.52406]
[1763395399118,3.2078,3094.1,3093.5,0.00484371]
[1763395399415,3.2078,3093.7,3092.4,3.2078]
[1763395399724,3.2078,3093.2,3092.4,3.2078]
[1763395400218,3.2078,3093.2,3092.5,0.52431]
[1763395400414,3.2078,3093.2,3092.5,0.00814217]
[1763395400415,3.2078,3092.7,3092.5,0.00814217]
[1763395401413,3.21264371,3093.2,3092.5,0.00814217]
[1763395401616,3.2078,3092.7,3092.5,0.00814217]
[1763395401811,3.2078,3093.1,3092.5,0.00814217]
[1763395402119,3.2078,3093.0,3092.5,0.00814217]
[1763395402316,4.072,3093.0,3092.5,0.00814217]
[1763395402618,3.2078,3092.6,3091.1,3.2078]
[1763395402922,3.2078,3093.0,3092.4,0.52433]
[1763395403116,3.2078,3093.0,3092.8,0.52426]
[1763395403316,3.2078,3093.0,3092.3,3.2078]
[1763395403620,3.2078,3093.0,3092.6,0.52428]
[1763395403818,4.072,3093.0,3092.3,0.00845446]
[1763395404017,3.2078,3092.4,3091.2,3.2078]
[1763395404216,3.2078,3094.1,3092.1,3.2078]
[1763395404423,3.2078,3095.1,3094.0,4.0743]
[1763395404613,3.2078,3095.1,3094.1,3.2078]
[1763395404817,3.2078,3095.1,3094.5,3.73177]
[1763395405124,3.21177512,3095.1,3094.9,0.5239]
[1763395405924,0.00397512,3095.1,3094.9,3.7317]
[1763395406119,0.00397512,3095.1,3094.9,3.2078]
[1763395406324,0.00397512,3095.1,3095.0,0.52389]
[1763395407229,3.2078,3096.4,3096.0,0.52371]
[1763395407414,3.2078,3096.4,3095.7,3.2078]
[1763395407617,3.2078,3096.4,3096.0,0.52372]
[1763395407822,3.2078,3096.4,3095.7,3.2078]
[1763395408229,3.21580228,3096.4,3096.1,0.5237]
[1763395408424,3.21580228,3096.4,3095.7,3.2078]
[1763395408726,3.2078,3095.9,3095.4,0.52381]
[1763395409021,3.2078,3095.9,3095.3,3.2078]
[1763395409324,3.2078,3095.9,3095.5,0.5238]
[1763395409518,3.2078,3095.9,3095.3,3.2078]
[1763395410619,3.2078,3095.9,3095.3,3.73163]
[1763395410822,3.2078,3096.3,3095.7,0.52377]
[1763395411026,3.2078,3096.3,3095.8,3.2078]
[1763395411324,3.2078,3096.3,3095.4,3.73162]
[1763395411532,3.2078,3096.3,3095.4,3.2078]
[1763395411820,3.2078,3096.3,3095.9,0.52373]
[1763395412027,3.2078,3096.3,3095.5,0.5238]
[1763395412224,3.2078,3095.9,3095.0,3.73169]
[1763395412413,3.2078,3095.9,3094.7,0.00485169]
[1763395412414,3.2078,3096.3,3095.4,3.73162]
[1763395412620,3.2078,3096.3,3095.4,3.2078]
[1763395413026,0.00800228,3096.4,3095.2,0.52386]
[1763395413027,3.2078,3095.9,3095.2,0.52386]
[1763395413218,3.2078,3095.9,3095.3,0.52384]
[1763395413419,3.2078,3095.9,3095.5,0.5238]
[1763395413730,3.2078,3096.3,3095.6,3.2078]
[1763395414025,3.2078,3096.3,3095.3,0.52384]
[1763395414227,3.2078,3096.3,3095.5,0.52379]
[1763395414422,3.21580228,3096.4,3095.6,3.2078]
[1763395414737,0.00800228,3096.4,3096.2,0.52368]
[1763395415430,3.2078,3097.6,3097.1,0.52353]
[1763395415625,3.2078,3098.1,3097.0,3.2078]
[1763395415820,0.0346,3098.7,3098.0,3.2078]
[1763395415821,3.2078,3098.6,3098.0,3.2078]
[1763395416021,3.2078,3098.6,3097.7,0.52343]
[1763395416218,3.2078,3098.6,3097.7,3.2078]
[1763395416431,0.00484371,3098.5,3098.3,0.52333]
[1763395417527,0.00484371,3098.5,3098.2,3.2078]
[1763395417832,3.2078,3098.4,3097.8,0.00484371]
[1763395418027,0.00484371,3098.5,3097.6,3.2078]
[1763395418028,3.2078,3098.0,3097.6,0.52345]
[1763395418221,0.00484371,3098.5,3097.5,3.2078]
[1763395418729,3.2078,3098.3,3097.5,3.2078]
[1763395418917,3.2078,3098.3,3097.5,3.21106376]
[1763395419121,3.2078,3098.3,3097.6,0.00484371]
[1763395419328,3.2078,3098.3,3097.7,0.52342]
[1763395419527,3.2078,3098.3,3097.6,3.21264371]
[1763395419839,3.2078,3098.3,3097.6,0.00484371]
[1763395420527,3.2078,3098.3,3097.9,3.2078]
[1763395420725,3.2078,3098.3,3098.1,0.52337]
[1763395420923,0.00484371,3098.5,3098.1,0.52337]
[1763395420924,0.00484371,3098.5,3098.3,0.52333]
[1763395421824,3.2078,3099.2,3098.1,3.2078]
[1763395422029,3.2078,3100.2,3099.1,3.2078]
[1763395422242,0.8642,3101.0,3100.1,0.52302]
[1763395422433,3.2078,3100.6,3099.9,0.52306]
[1763395422632,3.2078,3100.2,3099.2,3.2078]
[1763395422832,3.2078,3099.8,3099.4,0.00484371]
[1763395423431,3.2078,3099.8,3098.4,3.73111]
[1763395423626,3.2078,3099.3,3098.4,3.2078]
[1763395423829,3.2078,3098.5,3097.4,3.2078]
[1763395424028,3.2078,3098.1,3097.0,3.2078]
[1763395424235,3.2078,3098.6,3097.7,0.52342]
[1763395424437,0.00484371,3098.5,3097.9,3.2078]
[1763395425539,3.2078,3099.5,3098.4,3.2078]
[1763395425832,3.2078,3099.5,3098.6,3.2078]
[1763395426037,3.2078,3099.5,3098.3,0.52332]
[1763395426233,0.8642,3098.7,3097.8,0.00484371]
[1763395426623,0.8642,3098.7,3098.2,0.52334]
[1763395426830,0.00484371,3098.6,3098.1,3.2078]
[1763395427026,0.00484371,3098.6,3098.5,3.2078]
[1763395428334,9.21264371,3098.6,3097.8,0.00484371]
[1763395428634,3.21264371,3098.6,3097.8,0.52826371]
[1763395428834,3.2078,3098.2,3097.8,0.00484371]
[1763395429743,3.2078,3098.2,3097.8,0.52825371]
[1763395429924,3.21264371,3098.6,3097.8,0.00484371]
[1763395430639,3.2078,3098.2,3097.8,0.00484371]
[1763395431937,0.00484371,3098.6,3098.5,0.5233]
[1763395432241,3.2078,3099.1,3098.5,3.2078]
[1763395432435,3.2078,3099.5,3099.3,0.52316]
[1763395432636,3.2078,3099.5,3099.0,3.2078]
[1763395432942,3.2078,3099.5,3099.0,3.73101]
[1763395433441,3.2078,3099.5,3099.0,3.2078]
[1763395433940,3.2078,3099.5,3099.1,0.52319]
[1763395434243,3.2078,3099.5,3099.0,3.2078]
[1763395434842,3.2078,3099.5,3099.2,0.52318]
[1763395435044,3.2078,3099.5,3099.2,0.52317]
[1763395435639,3.2078,3099.5,3099.3,0.52316]
[1763395435842,3.2078,3099.5,3099.0,3.2078]
[1763395436339,3.2078,3099.5,3099.1,0.5232]
[1763395436537,3.2078,3099.5,3099.0,3.2078]
[1763395436744,3.2078,3099.5,3098.9,0.52323]
[1763395436938,0.00482774,3099.6,3099.0,3.2078]
[1763395437248,0.00482774,3099.6,3099.1,0.5232]
[1763395437843,0.00482774,3099.6,3099.0,3.2078]
[1763395438138,0.00482774,3099.6,3099.0,3.73101]
[1763395438340,0.00482774,3099.6,3099.0,3.2078]
[1763395438846,0.00482774,3099.6,3099.5,0.52313]
[1763395440040,0.00482774,3099.6,3099.0,3.731]
[1763395440243,3.2078,3099.5,3098.5,3.2078]
[1763395440440,0.90232774,3099.6,3098.5,3.2078]
[1763395440441,3.2078,3099.1,3098.5,3.2078]
[1763395440941,4.1053,3098.7,3097.7,3.21075085]
[1763395441144,3.2078,3098.1,3097.7,0.00295085]
[1763395441350,3.2078,3099.0,3098.0,0.52337]
[1763395441641,3.2078,3099.2,3098.5,3.2078]
[1763395441840,3.2078,3099.2,3097.8,0.86564371]
[1763395441841,3.2078,3098.6,3097.8,0.00484371]
[1763395442049,3.2078,3098.8,3098.2,3.2078]
[1763395442244,3.2078,3098.4,3097.8,3.21264371]
[1763395442443,3.2078,3097.9,3097.8,0.00484371]
[1763395442648,3.2078,3097.9,3096.6,3.2078]
[1763395442649,3.21073867,3097.9,3096.6,3.2078]
[1763395442846,0.00293867,3097.9,3097.8,3.2078]
[1763395443053,3.2078,3098.7,3098.2,0.52335]
[1763395443352,3.2078,3098.7,3097.6,3.2078]
[1763395443534,3.2078,3098.7,3098.4,0.5233]
[1763395443740,3.2078,3098.7,3098.5,0.52329]
[1763395443941,0.00484371,3098.9,3098.2,0.00484371]
[1763395444244,3.2078,3098.5,3098.2,0.00718301]
[1763395444441,3.21678611,3098.9,3098.2,3.21498301]
[1763395444648,3.21678611,3098.9,3098.7,0.52326]
[1763395444844,3.21678611,3098.9,3098.2,3.21498301]
[1763395445444,3.21678611,3098.9,3098.2,0.00718301]
[1763395445445,3.2078,3098.5,3098.2,0.00718301]
[1763395445645,3.2078,3098.5,3097.4,3.2078]
[1763395445850,3.2078,3098.1,3097.4,3.2078]
[1763395446047,3.2078,3098.5,3097.8,3.2078]
[1763395446247,0.00898611,3098.9,3098.7,0.52326]
[1763395446547,0.00898611,3098.9,3098.3,3.2078]
[1763395446749,0.00898611,3098.9,3098.3,3.21596115]
[1763395446943,0.00898611,3098.9,3098.3,0.53148115]
[1763395447148,0.00898611,3098.9,3098.3,3.21596115]
[1763395447549,0.00898611,3098.9,3098.3,0.00816115]
[1763395447750,0.00898611,3098.9,3098.3,0.53149115]
[1763395447957,0.00898611,3098.9,3098.3,0.00816115]
[1763395448156,0.00898611,3098.9,3098.5,0.5233]
[1763395448354,0.00898611,3098.9,3098.4,0.52332]
[1763395448655,0.00898611,3098.9,3098.5,0.5233]
[1763395449154,3.2078,3098.6,3098.4,0.52331]
[1763395449362,3.2078,3098.6,3097.7,3.2078]
[1763395449551,3.2078,3098.2,3097.7,3.2078]
[1763395449746,3.2078,3098.2,3097.3,3.2078]
[1763395449951,3.2078,3097.8,3097.3,3.2078]
[1763395450147,3.2078,3097.8,3096.7,3.2078]
[1763395450353,3.2078,3097.4,3096.9,0.00484371]
[1763395450557,3.2078,3097.0,3096.9,0.00484371]
[1763395450755,3.6565,3097.0,3095.8,3.2078]
[1763395450957,3.2078,3096.3,3095.4,3.2078]
[1763395451352,3.2078,3095.7,3095.0,0.52389]
[1763395451557,3.2078,3095.7,3095.1,0.52387]
[1763395451858,0.00484371,3095.7,3095.4,3.2078]
[1763395452058,0.00484371,3095.7,3095.1,0.00865972]
[1763395452059,3.2078,3095.6,3095.1,0.00865972]
[1763395452558,0.00484371,3095.7,3095.1,0.00865972]
[1763395452559,3.2078,3095.2,3095.1,0.00865972]
[1763395452765,3.21045852,3095.2,3095.1,0.00865972]
[1763395452962,3.21045852,3095.2,3095.1,0.00484371]
[1763395453174,3.21045852,3095.2,3094.3,3.2078]
[1763395453466,3.2078,3094.8,3094.3,3.2078]
[1763395453653,0.00265852,3095.2,3094.7,3.2078]
[1763395453855,0.00265852,3095.2,3095.0,0.52388]
[1763395454062,0.00265852,3095.2,3095.0,0.52636115]
[1763395454458,3.21045852,3095.2,3093.9,3.73187]
[1763395454654,3.21045852,3095.2,3094.2,3.2078]
[1763395454870,3.21045852,3095.2,3094.7,3.2078]
[1763395454871,0.00265852,3095.2,3094.7,3.2078]
[1763395455156,0.00265852,3095.2,3094.6,0.52395]
[1763395455360,3.2078,3094.9,3094.6,0.0040514]
[1763395455551,3.2078,3094.9,3093.7,3.24012428]
[1763395455752,3.2078,3093.8,3093.7,0.03232428]
[1763395455962,3.2078,3093.8,3092.2,0.25413682]
[1763395455963,3.2078,3093.8,3092.7,3.2078]
[1763395456570,0.00484371,3094.1,3093.1,3.2078]
[1763395456756,3.2078,3093.8,3092.6,3.2078]
[1763395456959,3.2078,3093.8,3092.6,3.73209]
[1763395457159,3.2078,3093.4,3092.6,3.2078]
[1763395457463,3.2078,3093.4,3092.8,0.52426]
[1763395457660,3.2078,3093.4,3092.6,3.2078]
[1763395457864,3.2078,3093.4,3093.2,0.52418]
[1763395458066,3.2078,3093.4,3092.6,3.2078]
[1763395458263,3.2078,3093.0,3092.2,3.2108756]
[1763395458460,3.2078,3092.6,3092.2,0.0030756]
[1763395459064,3.98729742,3093.0,3092.2,0.0030756]
[1763395459259,3.2078,3092.6,3092.2,0.0030756]
[1763395460573,3.2078,3092.6,3092.4,0.52433]
[1763395460757,2.55495599,3092.6,3092.5,6.0]
[1763395461063,3.2078,3093.9,3093.0,0.8077]
[1763395461257,3.2078,3093.9,3093.2,3.2078]
[1763395461458,0.00484371,3094.1,3093.6,3.2078]
[1763395461666,0.00484371,3094.1,3094.0,3.2078]
[1763395462163,3.2078,3094.8,3094.6,0.52396]
[1763395462560,3.2078,3095.3,3094.7,0.52394]
[1763395462756,0.8975,3096.0,3094.4,3.2078]
[1763395462757,3.2078,3094.8,3094.4,3.2078]
[1763395463162,3.2104702,3094.8,3094.4,3.21054023]
[1763395463969,0.0026702,3094.8,3094.6,0.52396]
[1763395464162,3.2078,3096.0,3095.8,0.52375]
[1763395464370,13.73070213,3096.9,3094.5,6.0]
[1763395464371,3.2078,3096.4,3095.5,3.2078]
[1763395464668,13.73070213,3096.9,3096.3,3.2078]
[1763395464863,3.2078,3097.0,3096.3,3.2078]
[1763395465064,0.00395192,3097.0,3096.8,3.2078]
[1763395465263,0.00395192,3097.0,3096.9,0.52357]
[1763395465469,4.371e-05,3097.3,3097.2,0.52352]
[1763395465769,3.2078,3098.4,3097.2,3.2078]
[1763395465963,3.2078,3098.4,3096.8,0.00350897]
[1763395465964,3.2078,3098.4,3097.7,3.2078]
[1763395466169,3.2078,3098.4,3097.9,0.52339]
[1763395466364,3.2078,3098.4,3097.7,3.2078]
[1763395466571,3.2078,3097.9,3097.7,0.00484371]
[1763395466774,3.2078,3097.9,3096.9,40.8]
[1763395466775,3.2078,3097.9,3096.8,0.00350897]
[1763395467365,3.2078,3097.5,3096.8,0.00350897]
[1763395467771,3.2078,3098.0,3096.9,0.52357]
[1763395468072,3.21657987,3098.4,3097.7,3.2078]
[1763395468872,0.00877987,3098.4,3097.3,3.2078]
[1763395469265,3.2078,3098.1,3097.3,3.2078]
[1763395469465,0.00877987,3098.4,3097.7,3.2078]
[1763395470274,0.00877987,3098.4,3098.1,0.52336]
[1763395470465,0.00877987,3098.4,3097.9,0.52339]
[1763395470773,0.00877987,3098.4,3097.7,3.2078]
[1763395470965,0.00877987,3098.4,3097.2,3.2078]
[1763395471160,3.2078,3097.7,3097.2,3.2078]
[1763395471368,3.2078,3097.3,3096.8,0.00835268]
[1763395471567,0.4221,3097.6,3096.8,0.00835268]
[1763395471773,3.2078,3097.0,3096.8,0.00835268]
[1763395472179,3.2078,3097.0,3096.2,3.2078]
[1763395472480,3.2078,3096.5,3095.7,3.2078]
[1763395472674,3.2078,3096.2,3095.7,3.2078]
[1763395473176,3.2078,3096.2,3095.7,3.21106231]
[1763395473177,3.21180275,3096.2,3095.7,3.21106231]
[1763395473370,0.00400275,3096.2,3095.7,3.21106231]
[1763395473775,0.00400275,3096.2,3095.1,3.2078]
[1763395473776,3.2078,3095.8,3095.1,3.2078]
[1763395474279,3.2078,3095.3,3094.4,3.2078]
[1763395474469,3.2078,3094.9,3093.6,3.2078]
[1763395474669,3.2078,3094.7,3093.6,3.21091604]
[1763395474874,0.00484371,3094.5,3093.6,3.21091604]
[1763395475578,0.00484371,3094.5,3093.7,0.5241]
[1763395475779,0.00484371,3094.5,3094.1,0.52404]
[1763395476174,0.00484371,3094.5,3094.0,3.2078]
[1763395476476,0.00484371,3094.5,3094.3,0.524]
[1763395476667,0.00484371,3094.5,3094.4,3.2078]
[1763395477375,0.00484371,3094.5,3094.4,3.73179]
[1763395477781,0.00484371,3094.5,3094.4,3.2078]
[1763395478775,0.00484371,3094.5,3094.0,3.2078]
[1763395479374,0.00484371,3094.5,3094.0,3.73185]
[1763395479678,0.00484371,3094.5,3094.0,3.2078]
[1763395480179,3.2078,3094.4,3094.0,3.2078]
[1763395480573,0.00484371,3094.5,3094.0,3.2078]
[1763395480983,3.2078,3094.4,3094.0,3.2078]
[1763395481182,0.00484371,3094.5,3094.0,3.2078]
[1763395481578,0.00484371,3094.5,3094.4,3.2078]
[1763395482283,3.2078,3096.1,3095.2,0.52385]
[1763395482581,3.2078,3096.1,3095.3,3.2078]
[1763395482769,3.2078,3095.7,3095.0,0.52388]
[1763395482972,3.2078,3096.1,3095.3,0.52384]
[1763395483176,3.2078,3096.1,3095.1,0.52386]
[1763395483373,3.2078,3096.1,3095.3,0.00484371]
[1763395483374,0.00484371,3095.9,3095.3,0.00484371]
[1763395483579,3.2078,3095.7,3095.3,0.00484371]
[1763395484281,6.0,3095.6,3094.5,3.2078]
[1763395484473,3.2078,3095.6,3094.5,3.2078]
[1763395484788,3.2078,3095.6,3094.9,3.2078]
[1763395485077,3.2078,3095.6,3094.7,0.52394]
[1763395485272,3.2078,3095.6,3094.5,3.2078]
[1763395485871,3.2078,3095.6,3094.6,0.52396]
[1763395486071,3.2078,3095.6,3094.5,3.2078]
[1763395486279,3.2078,3095.2,3094.5,3.2078]
[1763395487281,3.2078,3095.2,3094.7,0.52393]
[1763395487690,3.2078,3095.2,3095.1,0.52387]
[1763395487982,3.2078,3095.2,3094.0,0.82]
[1763395487983,3.2078,3095.6,3095.2,0.52385]
[1763395488187,0.00484371,3095.9,3095.5,3.73161]
[1763395488378,0.00484371,3095.9,3095.6,0.52378]
[1763395488575,0.00484371,3095.9,3095.5,3.2078]
[1763395488978,0.00484371,3095.9,3095.0,3.2078]
[1763395489178,0.00484371,3095.9,3095.5,3.2078]
[1763395489383,0.00484371,3095.9,3095.8,0.52376]
[1763395489577,3.2078,3097.0,3096.2,0.52367]
[1763395489780,3.2078,3097.0,3096.1,3.7315]
[1763395489976,3.2078,3097.0,3096.1,3.2078]
[1763395490175,4.0029,3097.0,3096.1,3.2078]
[1763395490385,3.2078,3096.5,3096.1,3.2078]